fUSD/lending_fUSD_20250107
["ID","MTS","AMOUNT","RATE_DAILY","PERIOD"]
[348026596,1736269845226,-500.0,9.319e-05,2]
[348026597,1736269845236,-500.0,9.319e-05,2]
[348026598,1736269845247,-1144.98,9.319e-05,2]
[348026599,1736269845256,-546.89,9.319e-05,2]
[348026600,1736269845266,-500.0,9.319e-05,2]
[348026601,1736269845275,-500.0,9.319e-05,2]
[348026602,1736269845284,-590.87,9.319e-05,2]
[348026603,1736269845294,-500.0,9.319e-05,2]
[348026604,1736269845303,-500.0,9.319e-05,2]
[348026605,1736269845313,-500.0,9.319e-05,2]
[348026606,1736269845326,-500.0,9.319e-05,2]
[348026607,1736269845336,-500.0,9.319e-05,2]
[348026608,1736269845346,-802.76,9.319e-05,2]
[348026609,1736269845356,-2051.12,9.319e-05,2]
[348026610,1736269845365,-500.0,9.319e-05,2]
[348026611,1736269845375,-500.0,9.319e-05,2]
[348026612,1736269845384,-500.0,9.319e-05,2]
[348026613,1736269845396,-500.0,9.319e-05,2]
[348026614,1736269845405,-500.0,9.319e-05,2]
[348026615,1736269845415,-500.0,9.319e-05,2]
[348026616,1736269845424,-565.88,9.319e-05,2]
[348026617,1736269845435,-500.0,9.319e-05,2]
[348026618,1736269845445,-500.0,9.319e-05,2]
[348026619,1736269845455,-500.0,9.319e-05,2]
[348026620,1736269845465,-500.0,9.319e-05,2]
[348026621,1736269845475,-500.0,9.319e-05,2]
[348026622,1736269845484,-500.0,9.319e-05,2]
[348026624,1736269845494,-500.0,9.319e-05,2]
[348026625,1736269845503,-539.57,9.319e-05,2]
[348026626,1736269845513,-500.0,9.319e-05,2]
[348026627,1736269845523,-500.0,9.319e-05,2]
[348026628,1736269845532,-500.0,9.319e-05,2]
[348026629,1736269845542,-1253.8,9.319e-05,2]
[348026632,1736269845551,-500.0,9.319e-05,2]
[348026633,1736269845561,-515.26,9.319e-05,2]
[348026634,1736269845571,-500.0,9.319e-05,2]
[348026635,1736269845580,-500.0,9.319e-05,2]
[348026636,1736269845590,-500.0,9.319e-05,2]
[348026637,1736269845599,-627.9,9.319e-05,2]
[348026638,1736269845609,-500.0,9.319e-05,2]
[348026639,1736269845620,-500.0,9.319e-05,2]
[348026640,1736269845630,-500.0,9.319e-05,2]
[348026641,1736269845639,-500.0,9.319e-05,2]
[348026642,1736269845650,-500.0,9.319e-05,2]
[348026643,1736269845660,-500.0,9.319e-05,2]
[348026644,1736269845670,-500.0,9.319e-05,2]
[348026645,1736269845680,-500.0,9.319e-05,2]
[348026646,1736269845689,-500.0,9.319e-05,2]
[348026647,1736269845699,-500.0,9.319e-05,2]
[348026648,1736269845708,-777.41,9.319e-05,2]
[348026649,1736269845718,-500.0,9.319e-05,2]
[348026650,1736269845728,-500.0,9.319e-05,2]
[348026651,1736269845738,-500.0,9.319e-05,2]
[348026652,1736269845748,-2341.36,9.319e-05,2]
[348026653,1736269845758,-500.0,9.319e-05,2]
[348026654,1736269845768,-154.745445,9.319e-05,2]
[348026655,1736269845778,-514.63,9.319e-05,2]
[348026656,1736269845788,-500.0,9.319e-05,2]
[348026657,1736269845798,-500.0,9.319e-05,2]
[348026658,1736269845808,-1033.9,9.319e-05,2]
[348026659,1736269845817,-500.0,9.319e-05,2]
[348026660,1736269845827,-500.0,9.319e-05,2]
[348026661,1736269845837,-500.0,9.319e-05,2]
[348026662,1736269845847,-153.380151,9.319e-05,2]
[348026663,1736269845856,-1531.0,9.319e-05,2]
[348026664,1736269845866,-500.0,9.319e-05,2]
[348026665,1736269845876,-500.0,9.319e-05,2]
[348026666,1736269845885,-515.4,9.319e-05,2]
[348026667,1736269845896,-208.70154394,9.319e-05,2]
[348026668,1736269845906,-500.0,9.319e-05,2]
[348026669,1736269845916,-539.95,9.319e-05,2]
[348026670,1736269845926,-503.94,9.319e-05,2]
[348026671,1736269845936,-500.0,9.319e-05,2]
[348026672,1736269845946,-500.0,9.319e-05,2]
[348026673,1736269845955,-1283.23,9.319e-05,2]
[348026674,1736269845965,-4687.05,9.319e-05,2]
[348026675,1736269845975,-581.8,9.319e-05,2]
[348026676,1736269845985,-500.0,9.319e-05,2]
[348026677,1736269845995,-500.56,9.319e-05,2]
[348026678,1736269846005,-500.0,9.319e-05,2]
[348026679,1736269846015,-737.07,9.319e-05,2]
[348026680,1736269846025,-500.0,9.319e-05,2]
[348026681,1736269846035,-633.14,9.319e-05,2]
[348026682,1736269846045,-500.0,9.319e-05,2]
[348026683,1736269846056,-929.78,9.319e-05,2]
[348026684,1736269846066,-2613.22,9.319e-05,2]
[348026685,1736269846076,-500.0,9.319e-05,2]
[348026686,1736269846086,-856.34,9.319e-05,2]
[348026687,1736269846096,-500.0,9.319e-05,2]
[348026688,1736269846106,-466.83,9.319e-05,2]
[348026689,1736269846115,-500.0,9.319e-05,2]
[348026690,1736269846126,-522.78,9.319e-05,2]
[348026691,1736269846212,-551.19,9.319e-05,2]
[348026692,1736269846222,-500.0,9.319e-05,2]
[348026693,1736269846232,-500.0,9.319e-05,2]
[348026695,1736269846243,-500.0,9.319e-05,2]
[348026697,1736269846253,-500.0,9.319e-05,2]
[348026699,1736269846264,-500.0,9.319e-05,2]
[348026701,1736269846274,-500.0,9.319e-05,2]
[348026703,1736269846283,-500.0,9.319e-05,2]
[348026705,1736269846292,-500.0,9.319e-05,2]
[348026707,1736269846302,-500.0,9.319e-05,2]
[348026709,1736269846311,-500.0,9.319e-05,2]
[348026711,1736269846320,-500.0,9.319e-05,2]
[348026712,1736269846329,-3266.89,9.319e-05,2]
[348026714,1736269846339,-500.0,9.319e-05,2]
[348026717,1736269846349,-500.0,9.319e-05,2]
[348026718,1736269846359,-500.0,9.319e-05,2]
[348026721,1736269846368,-500.0,9.319e-05,2]
[348026722,1736269846377,-500.0,9.319e-05,2]
[348026725,1736269846387,-500.0,9.319e-05,2]
[348026726,1736269846398,-500.0,9.319e-05,2]
[348026728,1736269846408,-500.0,9.319e-05,2]
[348026730,1736269846417,-2232.77,9.319e-05,2]
[348026732,1736269846427,-500.0,9.319e-05,2]
[348026734,1736269846437,-2124.35,9.319e-05,2]
[348026736,1736269846446,-500.0,9.319e-05,2]
[348026738,1736269846456,-500.0,9.319e-05,2]
[348026740,1736269846465,-500.0,9.319e-05,2]
[348026742,1736269846474,-3454.34,9.319e-05,2]
[348026744,1736269846483,-2560.79,9.319e-05,2]
[348026746,1736269846493,-500.0,9.319e-05,2]
[348026748,1736269846502,-557.96,9.319e-05,2]
[348026750,1736269846513,-1451.23,9.319e-05,2]
[348026752,1736269846523,-576.67,9.319e-05,2]
[348026755,1736269846533,-500.0,9.319e-05,2]
[348026757,1736269846542,-500.0,9.319e-05,2]
[348026759,1736269846552,-1488.01,9.319e-05,2]
[348026761,1736269846562,-500.0,9.319e-05,2]
[348026763,1736269846571,-699.38,9.319e-05,2]
[348026765,1736269846580,-500.0,9.319e-05,2]
[348026766,1736269846589,-500.0,9.319e-05,2]
[348026769,1736269846599,-500.0,9.319e-05,2]
[348026770,1736269846608,-568.01,9.319e-05,2]
[348026772,1736269846617,-500.0,9.319e-05,2]
[348026774,1736269846626,-500.0,9.319e-05,2]
[348026776,1736269846636,-675.82,9.319e-05,2]
[348026778,1736269846647,-500.0,9.319e-05,2]
[348026780,1736269846656,-500.0,9.319e-05,2]
[348026783,1736269846667,-500.0,9.319e-05,2]
[348026784,1736269846677,-500.0,9.319e-05,2]
[348026786,1736269846686,-500.0,9.319e-05,2]
[348026788,1736269846695,-500.0,9.319e-05,2]
[348026790,1736269846705,-500.0,9.319e-05,2]
[348026793,1736269846715,-500.0,9.319e-05,2]
[348026795,1736269846725,-500.0,9.319e-05,2]
[348026796,1736269846734,-500.0,9.319e-05,2]
[348026799,1736269846744,-500.0,9.319e-05,2]
[348026801,1736269846754,-502.40415682,9.319e-05,2]
[348026803,1736269846764,-500.0,9.319e-05,2]
[348026805,1736269846773,-908.6,9.319e-05,2]
[348026806,1736269846782,-500.0,9.319e-05,2]
[348026808,1736269846792,-500.0,9.319e-05,2]
[348026811,1736269846802,-341.78114472,9.319e-05,2]
[348026813,1736269846812,-500.0,9.319e-05,2]
[348026814,1736269846821,-500.0,9.319e-05,2]
[348026816,1736269846831,-509.15,9.319e-05,2]
[348026818,1736269846840,-500.0,9.319e-05,2]
[348026821,1736269846850,-500.0,9.319e-05,2]
[348026823,1736269846860,-500.0,9.319e-05,2]
[348026824,1736269846869,-569.58,9.319e-05,2]
[348026826,1736269846879,-500.0,9.319e-05,2]
[348026829,1736269846888,-500.0,9.319e-05,2]
[348026831,1736269846899,-628.23666726,9.319e-05,2]
[348026833,1736269846908,-500.0,9.319e-05,2]
[348026835,1736269846919,-601.29,9.319e-05,2]
[348026836,1736269846928,-466.98842619,9.319e-05,2]
[348026838,1736269846938,-500.0,9.319e-05,2]
[348026840,1736269846948,-500.0,9.319e-05,2]
[348026842,1736269846958,-735.64,9.319e-05,2]
[348026844,1736269846968,-527.0,9.319e-05,2]
[348026847,1736269846977,-367.83,9.32e-05,2]
[348026848,1736269846987,-500.0,9.32e-05,2]
[348026851,1736269846997,-189.42,9.32e-05,2]
[348026853,1736269847007,-500.0,9.32e-05,2]
[348026855,1736269847017,-408.07307127,9.32e-05,2]
[348026857,1736269847027,-500.0,9.32e-05,2]
[348026859,1736269847036,-500.0,9.32e-05,2]
[348026861,1736269847046,-500.0,9.32e-05,2]
[348026863,1736269847055,-500.0,9.32e-05,2]
[348026865,1736269847064,-458.41,9.32e-05,2]
[348026867,1736269847073,-500.0,9.32e-05,2]
[348026869,1736269847083,-500.0,9.32e-05,2]
[348026871,1736269847092,-500.0,9.32e-05,2]
[348026873,1736269847102,-500.0,9.32e-05,2]
[348026875,1736269847111,-500.0,9.32e-05,2]
[348026876,1736269847121,-500.0,9.32e-05,2]
[348026878,1736269847130,-585.67,9.32e-05,2]
[348026880,1736269847139,-500.0,9.32e-05,2]
[348026882,1736269847156,-500.0,9.32e-05,2]
[348026884,1736269847166,-479.98864061,9.32e-05,2]
[348026886,1736269847175,-500.0,9.32e-05,2]
[348026888,1736269847185,-634.8,9.32e-05,2]
[348026890,1736269847195,-500.0,9.32e-05,2]
[348026892,1736269847205,-500.0,9.32e-05,2]
[348026894,1736269847215,-500.0,9.32e-05,2]
[348026896,1736269847225,-500.0,9.32e-05,2]
[348026898,1736269847236,-1093.7,9.32e-05,2]
[348026900,1736269847246,-500.0,9.32e-05,2]
[348026902,1736269847255,-500.0,9.32e-05,2]
[348026904,1736269847265,-500.0,9.32e-05,2]
[348026906,1736269847274,-1413.47,9.32e-05,2]
[348026908,1736269847283,-1288.12,9.32e-05,2]
[348026910,1736269847292,-1185.98,9.32e-05,2]
[348026912,1736269847301,-2119.32,9.32e-05,2]
[348026913,1736269847310,-1535.33,9.32e-05,2]
[348026915,1736269847319,-687.94,9.32e-05,2]
[348026917,1736269847328,-3857.08,9.32e-05,2]
[348026919,1736269847338,-868.61,9.32e-05,2]
[348026921,1736269847347,-1125.63,9.32e-05,2]
[348026923,1736269847356,-2371.71,9.32e-05,2]
[348026925,1736269847366,-1450.55,9.32e-05,2]
[348026927,1736269847375,-500.0,9.32e-05,2]
[348026929,1736269847384,-915.4,9.32e-05,2]
[348026931,1736269847395,-575.38,9.32e-05,2]
[348026933,1736269847405,-728.18,9.32e-05,2]
[348026935,1736269847414,-151.80335574,9.532e-05,2]
[348026937,1736269847423,-1594.15,9.592e-05,2]
[348026939,1736269847432,-500.0,9.592e-05,2]
[348026941,1736269847442,-1240.47,9.592e-05,2]
[348026943,1736269847452,-741.54,9.592e-05,2]
[348026945,1736269847462,-1269.06,9.592e-05,2]
[348026947,1736269847471,-3340.23,9.592e-05,2]
[348026949,1736269847481,-522.9,9.592e-05,2]
[348026951,1736269847491,-572.51,9.592e-05,2]
[348026953,1736269847500,-500.0,9.592e-05,2]
[348026955,1736269847510,-2078.06,9.592e-05,2]
[348026957,1736269847519,-500.0,9.592e-05,2]
[348026959,1736269847528,-2143.6,9.592e-05,2]
[348026961,1736269847537,-500.0,9.592e-05,2]
[348026963,1736269847546,-500.0,9.592e-05,2]
[348026965,1736269847555,-1309.19,9.592e-05,2]
[348026967,1736269847564,-580.33,9.592e-05,2]
[348026969,1736269847573,-1631.23,9.592e-05,2]
[348026971,1736269847582,-1380.0,9.592e-05,2]
[348026972,1736269847591,-1027.85,9.592e-05,2]
[348026974,1736269847600,-570.54,9.592e-05,2]
[348026976,1736269847609,-532.32,9.592e-05,2]
[348026978,1736269847618,-1096.67,9.592e-05,2]
[348026980,1736269847628,-1137.79,9.592e-05,2]
[348026982,1736269847637,-500.0,9.592e-05,2]
[348026984,1736269847648,-875.8,9.592e-05,2]
[348026986,1736269847658,-500.0,9.592e-05,2]
[348026988,1736269847667,-502.1,9.592e-05,2]
[348026990,1736269847677,-500.0,9.592e-05,2]
[348026992,1736269847686,-500.0,9.592e-05,2]
[348026994,1736269847696,-500.0,9.593e-05,2]
[348026996,1736269847706,-500.0,9.593e-05,2]
[348026998,1736269847715,-500.0,9.593e-05,2]
[348027000,1736269847724,-500.0,9.593e-05,2]
[348027002,1736269847733,-500.0,9.593e-05,2]
[348027004,1736269847742,-500.0,9.593e-05,2]
[348027006,1736269847752,-500.0,9.593e-05,2]
[348027008,1736269847762,-500.0,9.593e-05,2]
[348027010,1736269847771,-500.0,9.593e-05,2]
[348027012,1736269847781,-500.0,9.593e-05,2]
[348027014,1736269847791,-500.0,9.593e-05,2]
[348027016,1736269847800,-500.0,9.593e-05,2]
[348027018,1736269847809,-500.0,9.593e-05,2]
[348027020,1736269847818,-500.0,9.593e-05,2]
[348027022,1736269847827,-500.0,9.593e-05,2]
[348027024,1736269847836,-500.0,9.593e-05,2]
[348027026,1736269847846,-500.0,9.593e-05,2]
[348027028,1736269847855,-500.0,9.593e-05,2]
[348027030,1736269847865,-500.0,9.593e-05,2]
[348027032,1736269847874,-500.0,9.593e-05,2]
[348027034,1736269847884,-500.0,9.593e-05,2]
[348027036,1736269847895,-500.0,9.593e-05,2]
[348027038,1736269847905,-500.0,9.593e-05,2]
[348027040,1736269847915,-500.0,9.593e-05,2]
[348027042,1736269847924,-500.0,9.593e-05,2]
[348027044,1736269847933,-500.0,9.593e-05,2]
[348027046,1736269847942,-500.0,9.593e-05,2]
[348027047,1736269847951,-500.0,9.593e-05,2]
[348027049,1736269847960,-500.0,9.593e-05,2]
[348027051,1736269847970,-500.0,9.593e-05,2]
[348027053,1736269847979,-500.0,9.593e-05,2]
[348027055,1736269847988,-500.0,9.593e-05,2]
[348027057,1736269847997,-500.0,9.593e-05,2]
[348027059,1736269848006,-500.0,9.593e-05,2]
[348027061,1736269848015,-500.0,9.593e-05,2]
[348027063,1736269848025,-500.0,9.593e-05,2]
[348027065,1736269848034,-500.0,9.593e-05,2]
[348027067,1736269848044,-500.0,9.593e-05,2]
[348027069,1736269848053,-500.0,9.593e-05,2]
[348027071,1736269848063,-500.0,9.593e-05,2]
[348027073,1736269848073,-500.0,9.593e-05,2]
[348027075,1736269848084,-500.0,9.593e-05,2]
[348027077,1736269848094,-500.0,9.593e-05,2]
[348027079,1736269848104,-500.0,9.593e-05,2]
[348027081,1736269848113,-500.0,9.593e-05,2]
[348027083,1736269848123,-500.0,9.593e-05,2]
[348027085,1736269848133,-580.43,9.593e-05,2]
[348027087,1736269848143,-500.0,9.593e-05,2]
[348027089,1736269848156,-500.0,9.593e-05,2]
[348027091,1736269848169,-500.0,9.593e-05,2]
[348027093,1736269848179,-500.0,9.593e-05,2]
[348027095,1736269848190,-500.0,9.593e-05,2]
[348027097,1736269848202,-500.0,9.593e-05,2]
[348027099,1736269848212,-500.0,9.593e-05,2]
[348027101,1736269848222,-500.0,9.593e-05,2]
[348027103,1736269848232,-500.0,9.593e-05,2]
[348027105,1736269848243,-500.0,9.593e-05,2]
[348027107,1736269848253,-568.34,9.593e-05,2]
[348027109,1736269848263,-500.0,9.593e-05,2]
[348027111,1736269848272,-500.0,9.593e-05,2]
[348027113,1736269848282,-500.0,9.593e-05,2]
[348027115,1736269848291,-500.0,9.593e-05,2]
[348027116,1736269848301,-500.0,9.593e-05,2]
[348027118,1736269848310,-500.0,9.593e-05,2]
[348027120,1736269848320,-500.0,9.593e-05,2]
[348027122,1736269848329,-607.74,9.593e-05,2]
[348027124,1736269848339,-500.0,9.593e-05,2]
[348027127,1736269848350,-500.0,9.593e-05,2]
[348027129,1736269848359,-500.0,9.593e-05,2]
[348027131,1736269848368,-500.0,9.593e-05,2]
[348027133,1736269848377,-500.0,9.593e-05,2]
[348027135,1736269848387,-500.0,9.593e-05,2]
[348027136,1736269848399,-500.0,9.593e-05,2]
[348027138,1736269848408,-1144.98,9.593e-05,2]
[348027140,1736269848418,-546.89,9.593e-05,2]
[348027143,1736269848428,-500.0,9.593e-05,2]
[348027144,1736269848438,-500.0,9.593e-05,2]
[348027146,1736269848447,-590.87,9.593e-05,2]
[348027149,1736269848457,-500.0,9.593e-05,2]
[348027151,1736269848467,-500.0,9.593e-05,2]
[348027152,1736269848476,-500.0,9.593e-05,2]
[348027154,1736269848485,-500.0,9.593e-05,2]
[348027156,1736269848495,-500.0,9.593e-05,2]
[348027158,1736269848505,-802.76,9.593e-05,2]
[348027160,1736269848515,-500.0,9.593e-05,2]
[348027162,1736269848525,-169.38658088,9.593e-05,2]
[348027164,1736269848535,-2051.12,9.593e-05,2]
[348027166,1736269848545,-500.0,9.593e-05,2]
[348027168,1736269848554,-500.0,9.593e-05,2]
[348027170,1736269848564,-500.0,9.593e-05,2]
[348027172,1736269848573,-500.0,9.593e-05,2]
[348027174,1736269848583,-565.88,9.593e-05,2]
[348027175,1736269848593,-500.0,9.593e-05,2]
[348027176,1736269848602,-500.0,9.593e-05,2]
[348027177,1736269848612,-500.0,9.593e-05,2]
[348027178,1736269848622,-500.0,9.593e-05,2]
[348027179,1736269848632,-224.84,9.593e-05,2]
[348027180,1736269848641,-500.0,9.593e-05,2]
[348027181,1736269848655,-500.0,9.593e-05,2]
[348027182,1736269848665,-539.57,9.593e-05,2]
[348027183,1736269848675,-500.0,9.593e-05,2]
[348027184,1736269848685,-500.0,9.593e-05,2]
[348027185,1736269848695,-500.0,9.593e-05,2]
[348027186,1736269848706,-1253.8,9.593e-05,2]
[348027188,1736269848716,-500.0,9.593e-05,2]
[348027190,1736269848726,-500.0,9.593e-05,2]
[348027192,1736269848735,-500.0,9.593e-05,2]
[348027194,1736269848745,-500.0,9.593e-05,2]
[348027196,1736269848754,-627.9,9.593e-05,2]
[348027198,1736269848763,-500.0,9.593e-05,2]
[348027200,1736269848773,-500.0,9.593e-05,2]
[348027202,1736269848782,-410.88,9.593e-05,2]
[348027204,1736269848791,-500.0,9.593e-05,2]
[348027206,1736269848801,-500.0,9.593e-05,2]
[348027208,1736269848810,-500.0,9.593e-05,2]
[348027210,1736269848821,-500.0,9.593e-05,2]
[348027212,1736269848831,-500.0,9.593e-05,2]
[348027214,1736269848842,-500.0,9.593e-05,2]
[348027216,1736269848852,-500.0,9.593e-05,2]
[348027218,1736269848862,-777.41,9.593e-05,2]
[348027220,1736269848872,-500.0,9.593e-05,2]
[348027222,1736269848882,-500.0,9.593e-05,2]
[348027224,1736269848891,-500.0,9.593e-05,2]
[348027226,1736269848904,-2341.36,9.593e-05,2]
[348027228,1736269848914,-500.0,9.593e-05,2]
[348027230,1736269848923,-154.745445,9.593e-05,2]
[348027232,1736269848933,-514.63,9.593e-05,2]
[348027234,1736269848944,-500.0,9.593e-05,2]
[348027236,1736269848954,-500.0,9.593e-05,2]
[348027238,1736269848965,-1033.9,9.593e-05,2]
[348027240,1736269848975,-500.0,9.593e-05,2]
[348027243,1736269848985,-500.0,9.593e-05,2]
[348027245,1736269848995,-500.0,9.593e-05,2]
[348027246,1736269849005,-153.380151,9.593e-05,2]
[348027249,1736269849015,-500.0,9.593e-05,2]
[348027251,1736269849026,-1531.0,9.593e-05,2]
[348027253,1736269849037,-500.0,9.593e-05,2]
[348027255,1736269849047,-515.4,9.593e-05,2]
[348027256,1736269849057,-500.0,9.593e-05,2]
[348027259,1736269849068,-539.95,9.593e-05,2]
[348027261,1736269849078,-503.94,9.593e-05,2]
[348027263,1736269849087,-500.0,9.593e-05,2]
[348027265,1736269849098,-500.0,9.593e-05,2]
[348027267,1736269849107,-1283.23,9.593e-05,2]
[348027269,1736269849117,-4687.05,9.593e-05,2]
[348027270,1736269849127,-581.8,9.593e-05,2]
[348027272,1736269849137,-500.0,9.593e-05,2]
[348027275,1736269849148,-500.56,9.593e-05,2]
[348027277,1736269849161,-500.0,9.593e-05,2]
[348027279,1736269849171,-737.07,9.593e-05,2]
[348027281,1736269849181,-500.0,9.593e-05,2]
[348027282,1736269849194,-633.14,9.593e-05,2]
[348027284,1736269849204,-500.0,9.593e-05,2]
[348027287,1736269849214,-929.78,9.593e-05,2]
[348027288,1736269849224,-2613.22,9.593e-05,2]
[348027291,1736269849236,-500.0,9.593e-05,2]
[348027293,1736269849246,-856.34,9.593e-05,2]
[348027295,1736269849256,-500.0,9.593e-05,2]
[348027297,1736269849267,-500.0,9.593e-05,2]
[348027299,1736269849277,-551.19,9.593e-05,2]
[348027301,1736269849287,-500.0,9.593e-05,2]
[348027303,1736269849297,-500.0,9.593e-05,2]
[348027305,1736269849308,-500.0,9.593e-05,2]
[348027307,1736269849318,-500.0,9.593e-05,2]
[348027309,1736269849328,-500.0,9.593e-05,2]
[348027311,1736269849339,-500.0,9.593e-05,2]
[348027313,1736269849349,-500.0,9.593e-05,2]
[348027315,1736269849360,-500.0,9.593e-05,2]
[348027317,1736269849370,-500.0,9.593e-05,2]
[348027319,1736269849380,-500.0,9.593e-05,2]
[348027321,1736269849390,-3266.89,9.593e-05,2]
[348027323,1736269849402,-500.0,9.593e-05,2]
[348027325,1736269849412,-500.0,9.593e-05,2]
[348027327,1736269849421,-500.0,9.593e-05,2]
[348027329,1736269849432,-500.0,9.593e-05,2]
[348027331,1736269849442,-566.32602452,9.593e-05,2]
[348027333,1736269849452,-500.0,9.593e-05,2]
[348027335,1736269849462,-500.0,9.593e-05,2]
[348027337,1736269849472,-500.0,9.593e-05,2]
[348027339,1736269849481,-2232.77,9.593e-05,2]
[348027341,1736269849491,-500.0,9.593e-05,2]
[348027343,1736269849501,-2124.35,9.593e-05,2]
[348027345,1736269849511,-500.0,9.593e-05,2]
[348027347,1736269849520,-500.0,9.593e-05,2]
[348027349,1736269849529,-500.0,9.593e-05,2]
[348027351,1736269849539,-3454.34,9.593e-05,2]
[348027353,1736269849549,-2560.79,9.593e-05,2]
[348027356,1736269849559,-500.0,9.593e-05,2]
[348027357,1736269849569,-557.96,9.593e-05,2]
[348027359,1736269849579,-1451.23,9.593e-05,2]
[348027361,1736269849588,-576.67,9.593e-05,2]
[348027363,1736269849598,-500.0,9.593e-05,2]
[348027365,1736269849608,-500.0,9.593e-05,2]
[348027367,1736269849617,-1488.01,9.593e-05,2]
[348027370,1736269849627,-500.0,9.593e-05,2]
[348027371,1736269849637,-699.38,9.593e-05,2]
[348027374,1736269849648,-500.0,9.593e-05,2]
[348027376,1736269849658,-500.0,9.593e-05,2]
[348027377,1736269849668,-568.01,9.593e-05,2]
[348027380,1736269849678,-500.0,9.593e-05,2]
[348027382,1736269849687,-500.0,9.593e-05,2]
[348027384,1736269849697,-675.82,9.593e-05,2]
[348027386,1736269849707,-500.0,9.593e-05,2]
[348027388,1736269849716,-500.0,9.593e-05,2]
[348027390,1736269849725,-500.0,9.593e-05,2]
[348027392,1736269849735,-500.0,9.593e-05,2]
[348027394,1736269849744,-500.0,9.593e-05,2]
[348027396,1736269849755,-500.0,9.593e-05,2]
[348027398,1736269849764,-500.0,9.593e-05,2]
[348027400,1736269849774,-500.0,9.593e-05,2]
[348027402,1736269849784,-500.0,9.593e-05,2]
[348027404,1736269849794,-500.0,9.593e-05,2]
[348027406,1736269849804,-908.6,9.593e-05,2]
[348027408,1736269849814,-500.0,9.593e-05,2]
[348027410,1736269849824,-500.0,9.593e-05,2]
[348027412,1736269849834,-500.0,9.593e-05,2]
[348027414,1736269849844,-500.0,9.593e-05,2]
[348027416,1736269849854,-509.15,9.593e-05,2]
[348027418,1736269849865,-500.0,9.593e-05,2]
[348027420,1736269849875,-500.0,9.593e-05,2]
[348027422,1736269849885,-569.58,9.593e-05,2]
[348027424,1736269849895,-500.0,9.593e-05,2]
[348027426,1736269849906,-500.0,9.593e-05,2]
[348027428,1736269849916,-601.29,9.593e-05,2]
[348027430,1736269849926,-500.0,9.593e-05,2]
[348027432,1736269849936,-502.33836877,9.593e-05,2]
[348027434,1736269849946,-735.64,9.593e-05,2]
[348027436,1736269849957,-500.0,9.594e-05,2]
[348027438,1736269849967,-500.0,9.594e-05,2]
[348027440,1736269849977,-500.0,9.594e-05,2]
[348027442,1736269849987,-500.0,9.594e-05,2]
[348027444,1736269849997,-500.0,9.594e-05,2]
[348027446,1736269850007,-500.0,9.594e-05,2]
[348027448,1736269850017,-198.90764567,9.594e-05,2]
[348027450,1736269850027,-500.0,9.594e-05,2]
[348027452,1736269850036,-300.99,9.594e-05,2]
[348027454,1736269850046,-500.0,9.594e-05,2]
[348027456,1736269850056,-500.0,9.594e-05,2]
[348027458,1736269850066,-500.0,9.594e-05,2]
[348027460,1736269850076,-500.0,9.594e-05,2]
[348027462,1736269850086,-500.0,9.594e-05,2]
[348027465,1736269850096,-500.0,9.594e-05,2]
[348027466,1736269850106,-500.0,9.594e-05,2]
[348027469,1736269850115,-500.0,9.594e-05,2]
[348027471,1736269850125,-500.0,9.594e-05,2]
[348027473,1736269850135,-500.0,9.594e-05,2]
[348027475,1736269850145,-1093.7,9.594e-05,2]
[348027477,1736269850156,-500.0,9.594e-05,2]
[348027479,1736269850167,-500.0,9.594e-05,2]
[348027481,1736269850177,-500.0,9.594e-05,2]
[348027483,1736269850190,-1413.47,9.594e-05,2]
[348027485,1736269850202,-1288.12,9.594e-05,2]
[348027487,1736269850212,-1185.98,9.594e-05,2]
[348027489,1736269850222,-2119.32,9.594e-05,2]